fUST/lending_fUST_20250925
["ID","MTS","AMOUNT","RATE_DAILY","PERIOD"]
[387502907,1758745858171,-774.41,0.00024931,2]
[387502908,1758745858180,-1028.64,0.00024931,2]
[387502909,1758745858189,-692.67,0.00024931,2]
[387502910,1758745858199,-610.19,0.00024931,2]
[387502911,1758745858209,-555.02,0.00024931,2]
[387502912,1758745858218,-543.17,0.00024931,2]
[387502913,1758745858228,-774.76,0.00024931,2]
[387502914,1758745858238,-692.37,0.00024931,2]
[387502915,1758745858248,-562.63,0.00024931,2]
[387502916,1758745858258,-861.47,0.00024931,2]
[387502917,1758745858268,-2070.13,0.00024931,2]
[387502918,1758745858279,-688.05,0.00024931,2]
[387502919,1758745858288,-626.69,0.00024931,2]
[387502920,1758745858298,-900.62,0.00024931,2]
[387502921,1758745858308,-405.87,0.00024931,2]
[387502922,1758745858318,-692.17,0.00024931,2]
[387502923,1758745858327,-583.87,0.00024931,2]
[387502924,1758745858338,-1043.37,0.00024931,2]
[387502925,1758745858347,-1157.98,0.00024931,2]
[387502926,1758745858357,-417.15472785,0.00025,10]
[387502927,1758745858366,-1014.40402169,0.00025,2]
[387502928,1758745858376,-743.35,0.00025205,2]
[387502929,1758745858386,-593.66,0.00025205,2]
[387502930,1758745858395,-151.0,0.00025205,7]
[387502931,1758745858405,-151.0,0.00025205,7]
[387502932,1758745858414,-151.0,0.00025205,7]
[387502933,1758745858424,-151.0,0.00025205,7]
[387502934,1758745858433,-151.0,0.00025205,7]
[387502935,1758745858444,-774.41,0.00025205,2]
[387502936,1758745858454,-1028.64,0.00025205,2]
[387502937,1758745858464,-692.67,0.00025205,2]
[387502938,1758745858474,-610.19,0.00025205,2]
[387502939,1758745858484,-543.17,0.00025205,2]
[387502940,1758745858493,-774.76,0.00025205,2]
[387502941,1758745858504,-692.37,0.00025205,2]
[387502942,1758745858514,-562.63,0.00025205,2]
[387502943,1758745858525,-861.47,0.00025205,2]
[387502944,1758745858535,-2070.13,0.00025205,2]
[387502945,1758745858545,-688.05,0.00025205,2]
[387502946,1758745858555,-626.69,0.00025205,2]
[387502947,1758745858565,-900.62,0.00025205,2]
[387502948,1758745858575,-692.17,0.00025205,2]
[387502949,1758745858584,-583.87,0.00025205,2]
[387502950,1758745858594,-1043.37,0.00025205,2]
[387502951,1758745858603,-771.54,0.00025205,4]
[387502952,1758745858614,-1157.98,0.00025205,2]
[387502953,1758745858624,-2542.27029692,0.00025259,3]
[387502954,1758745858637,-250.0,0.00025327,2]
[387502955,1758745858647,-154.69059549,0.00025421,2]
[387502956,1758745858657,-743.40787635,0.00025479,2]
[387502957,1758745858667,-593.67,0.00025479,2]
[387502958,1758745858676,-774.49396645,0.00025479,2]
[387502959,1758745858686,-1028.8,0.00025479,2]
[387502960,1758745858695,-692.70280255,0.00025479,2]
[387502961,1758745858705,-610.36795393,0.00025479,2]
[387502962,1758745858715,-543.2,0.00025479,2]
[387502963,1758745858724,-774.92813506,0.00025479,2]
[387502964,1758745858734,-692.51,0.00025479,2]
[387502965,1758745858744,-562.81089333,0.00025479,2]
[387502966,1758745858754,-861.49,0.00025479,2]
[387502967,1758745858764,-2070.18008984,0.00025479,2]
[387502968,1758745858774,-688.11,0.00025479,2]
[387502969,1758745858783,-626.84,0.00025479,2]
[387502970,1758745858793,-900.64,0.00025479,2]
[387502971,1758745858804,-692.29,0.00025479,2]
[387502972,1758745858878,-583.92,0.00025479,2]
[387502973,1758745858888,-1043.39892972,0.00025479,2]
[387502974,1758745858898,-1158.15447017,0.00025479,2]
[387502975,1758745858908,-224.1,0.00025794,5]
[387502976,1758745858918,-108000.000002,0.00026,30]
[387502977,1758745858928,-160.0,0.00026,30]
[387502978,1758745858937,-532.2324375,0.00026,30]
[387502979,1758745858946,-785.35,0.0002618,2]
[387502980,1758745858956,-2542.27029692,0.00026331,5]
[387502981,1758745858966,-150.02,0.00026612,7]
[387502982,1758745858976,-150.01,0.00026612,7]
[387502983,1758745858985,-150.0,0.00026626,30]
[387502984,1758745858995,-150.02,0.00026712,7]
[387502985,1758745859005,-150.01,0.00026712,7]
[387502986,1758745859015,-532.2324375,0.000268,30]
[387502987,1758745859026,-160.0,0.000268,30]
[387502988,1758745859035,-150.02,0.00026812,7]
[387502989,1758745859045,-150.01,0.00026812,7]
[387502990,1758745859055,-150.02,0.00026912,7]
[387502991,1758745859064,-150.01,0.00026912,7]
[387502992,1758745859073,-502.38422378,0.00027,5]
[387502993,1758745859083,-150.02,0.00027012,7]
[387502994,1758745859093,-150.01,0.00027012,7]
[387502995,1758745859102,-224.1,0.000271,6]
[387502996,1758745859111,-150.02,0.00027112,7]
[387502997,1758745859121,-150.01,0.00027112,7]
[387502998,1758745859130,-771.54,0.00027123,6]
[387502999,1758745859140,-150.02,0.00027212,7]
[387503000,1758745859150,-150.01,0.00027212,7]
[387503001,1758745859159,-150.02,0.00027312,7]
[387503002,1758745859168,-150.01,0.00027312,7]
[387503003,1758745859178,-500.0,0.00027397,7]
[387503004,1758745859187,-500.0,0.00027397,7]
[387503005,1758745859198,-162.49,0.00027397,7]
[387503006,1758745859207,-150.0,0.00027397,5]
[387503007,1758745859217,-2542.27029692,0.00027403,7]
[387503008,1758745859227,-150.02,0.00027412,15]
[387503009,1758745859237,-150.02,0.00027512,15]
[387503010,1758745859247,-532.2324375,0.000276,30]
[387503011,1758745859257,-160.0,0.000276,30]
[387503012,1758745859266,-150.02,0.00027612,15]
[387503013,1758745859275,-150.02,0.00027712,15]
[387503014,1758745859285,-150.02,0.00027812,15]
[387503015,1758745859295,-150.02,0.00027912,15]
[387503016,1758745859305,-250.0,0.00027945,5]
[387503017,1758745859314,-160.0,0.00028,3]
[387503018,1758745859323,-160.0,0.00028,3]
[387503019,1758745859333,-3562.61,0.00028,2]
[387503020,1758745859343,-150.02,0.00028012,15]
[387503021,1758745859352,-981.68,0.0002805,2]
[387503022,1758745859362,-150.02,0.00028112,15]
[387503023,1758745859371,-150.02,0.00028212,15]
[387503024,1758745859381,-215.8,0.00028219,14]
[387503025,1758745859390,-459.0,0.000283,120]
[387503026,1758745859399,-150.07370891,0.00028312,15]
[387503027,1758745859409,-500.0,0.00028332,2]
[387503028,1758745859418,-173.0,0.00028351,2]
[387503029,1758745859428,-224.1,0.00028406,7]
[387503030,1758745859438,-173.0,0.00028422,2]
[387503031,1758745859447,-173.0,0.00028448,7]
[387503032,1758745859457,-2542.27029692,0.00028475,9]
[387503033,1758745859466,-184.44490016,0.00028476,5]
[387503034,1758745859476,-350.0,0.00028493,5]
[387503035,1758745859485,-173.0,0.00028702,2]
[387503036,1758745859495,-978.0,0.00028799,2]
[387503037,1758745859504,-2159.0,0.00028799,2]
[387503038,1758745859514,-635.0,0.00028799,2]
[387503039,1758745859523,-410.0,0.00028799,2]
[387503040,1758745859533,-215.8,0.00028904,15]
[387503041,1758745859542,-173.0,0.00028957,2]
[387503042,1758745859551,-4506.70595168,0.0002899,2]
[387503043,1758745859560,-160.0,0.00029,10]
[387503044,1758745859570,-160.0,0.00029,10]
[387503045,1758745859580,-771.54,0.00029041,8]
[387503046,1758745859589,-450.0,0.00029041,5]
[387503047,1758745859599,-168.29,0.00029047,30]
[387503048,1758745859609,-173.0,0.00029098,2]
[387503049,1758745859618,-173.0,0.00029154,2]
[387503050,1758745859629,-200.76688403,0.0002919,3]
[387503051,1758745859641,-907.81996114,0.0002921,22]
[387503052,1758745859650,-9406.26694739,0.000293,2]
[387503053,1758745859660,-192.02965502,0.00029314,2]
[387503054,1758745859671,-767.35050147,0.00029314,2]
[387503055,1758745859680,-173.0,0.00029349,2]
[387503056,1758745859690,-151.0,0.00029383,7]
[387503057,1758745859699,-151.0,0.00029383,7]
[387503058,1758745859710,-151.0,0.00029383,7]
[387503059,1758745859721,-151.0,0.00029383,7]
[387503060,1758745859731,-908.884148,0.00029383,7]
[387503061,1758745859741,-908.884148,0.00029383,7]
[387503062,1758745859750,-908.884148,0.00029383,7]
[387503063,1758745859760,-151.0,0.00029383,7]
[387503064,1758745859770,-908.884148,0.00029383,7]
[387503065,1758745859779,-339.532351,0.00029383,7]
[387503066,1758745859789,-339.532351,0.00029383,7]
[387503067,1758745859800,-339.532351,0.00029383,7]
[387503068,1758745859810,-151.0,0.00029383,7]
[387503069,1758745859820,-151.0,0.00029383,7]
[387503070,1758745859829,-339.532351,0.00029383,7]
[387503071,1758745859839,-151.0,0.00029383,7]
[387503072,1758745859849,-151.0,0.00029383,7]
[387503073,1758745859858,-151.0,0.00029383,7]
[387503074,1758745859869,-151.0,0.00029383,7]
[387503075,1758745859878,-151.0,0.00029383,7]
[387503076,1758745859888,-347.00435,0.00029383,7]
[387503077,1758745859897,-151.0,0.00029383,7]
[387503078,1758745859907,-151.0,0.00029383,7]
[387503079,1758745859916,-347.00435,0.00029383,7]
[387503080,1758745859926,-347.00435,0.00029383,7]
[387503081,1758745859996,-347.00435,0.00029383,7]
[387503082,1758745860006,-151.0,0.00029383,7]
[387503083,1758745860016,-151.0,0.00029383,7]
[387503084,1758745860026,-277.148617,0.00029383,7]
[387503085,1758745860036,-151.0,0.00029383,7]
[387503086,1758745860046,-151.0,0.00029383,7]
[387503087,1758745860056,-151.0,0.00029383,7]
[387503088,1758745860067,-151.0,0.00029383,7]
[387503089,1758745860076,-151.0,0.00029383,7]
[387503090,1758745860086,-151.0,0.00029383,7]
[387503091,1758745860096,-151.0,0.00029383,7]
[387503092,1758745860106,-151.0,0.00029383,7]
[387503093,1758745860115,-150.0,0.00029383,2]
[387503094,1758745860125,-2000.0,0.00029383,30]
[387503095,1758745860134,-2000.0,0.00029383,30]
[387503096,1758745860144,-1080.8,0.00029383,30]
[387503097,1758745860154,-250.0,0.00029383,10]
[387503098,1758745860163,-250.0,0.00029383,10]
[387503099,1758745860172,-250.0,0.00029383,10]
[387503100,1758745860181,-346.175394,0.00029383,10]
[387503101,1758745860191,-501307.3975013,0.00029383,20]
[387503102,1758745860306,-110589.35082681,0.00029383,20]
[387503103,1758745860315,-5989.73907648,0.00029383,7]
[387503104,1758745860325,-184.44490015,0.00029383,5]
[387503105,1758745860335,-2000.0,0.000294,2]
[387503106,1758745860344,-742.4,0.000294,2]
[387503107,1758745860354,-200.0,0.00029471,2]
[387503108,1758745860363,-1574.140623,0.000295,2]
[387503109,1758745860372,-173.0,0.00029542,2]
[387503110,1758745860382,-2542.27029692,0.00029547,12]
[387503111,1758745860391,-215.8,0.00029589,16]
[387503112,1758745860401,-550.0,0.00029589,5]
[387503113,1758745860410,-173.0,0.00029691,2]
[387503114,1758745860419,-224.1,0.00029711,30]
[387503115,1758745860429,-173.0,0.00029754,2]
[387503116,1758745860438,-173.0,0.00029771,7]
[387503117,1758745860448,-1178.02,0.0002992,2]
[387503118,1758745860457,-173.0,0.00029928,2]
[387503119,1758745860466,-191.6955,0.0003,2]
[387503120,1758745860476,-248.18906872,0.0003,20]
[387503121,1758745860485,-287.5435,0.0003,2]
[387503122,1758745860494,-8215.19738007,0.0003,10]
[387503123,1758745860504,-100130.99825051,0.0003,30]
[387503124,1758745860513,-499.999999,0.0003,5]
[387503125,1758745860523,-165.46,0.0003,5]
[387503126,1758745860532,-523.89314111,0.0003,2]
[387503127,1758745860542,-532.2324375,0.0003,10]
[387503128,1758745860552,-160.0,0.0003,10]
[387503129,1758745860562,-1500.0,0.0003,2]
[387503130,1758745860572,-173.0,0.00030049,2]
[387503131,1758745860581,-302.0,0.00030073,2]
[387503132,1758745860591,-151.09476238,0.00030073,2]
[387503133,1758745860600,-161.71903744,0.00030082,30]
[387503134,1758745860610,-173.0,0.00030095,7]
[387503135,1758745860620,-173.0,0.00030105,2]
[387503136,1758745860633,-284.65711296,0.0003013,2]
[387503137,1758745860644,-650.0,0.00030137,5]
[387503138,1758745860654,-173.0,0.00030159,2]
[387503139,1758745860664,-8833.360842,0.0003016,14]
[387503140,1758745860673,-960.56168492,0.000302,2]
[387503141,1758745860683,-548.229999,0.0003027,120]
[387503142,1758745860693,-215.8,0.00030273,17]
[387503143,1758745860702,-184.5293657,0.0003034,2]
[387503144,1758745860712,-9019.0,0.00030347,2]
[387503145,1758745860722,-173.0,0.00030363,2]
[387503146,1758745860732,-2000.0,0.000304,3]
[387503147,1758745860741,-173.0,0.00030573,2]
[387503148,1758745860751,-155.0,0.000306,120]
[387503149,1758745860761,-173.0,0.00030602,2]
[387503150,1758745860770,-173.0,0.00030602,7]
[387503151,1758745860780,-64309.0729678,0.00030618,2]
[387503152,1758745860790,-230.6421257,0.00030618,2]
[387503153,1758745860800,-2542.27029692,0.00030619,14]
[387503154,1758745860810,-750.0,0.00030685,5]
[387503155,1758745860819,-173.0,0.00030696,2]
[387503156,1758745860828,-175.0,0.00030723,2]
[387503157,1758745860838,-173.0,0.00030793,2]
[387503158,1758745860847,-3562.61,0.000308,2]
[387503159,1758745860855,-175.0,0.00030927,7]
[387503160,1758745860865,-215.8,0.00030958,18]
[387503161,1758745860874,-771.54,0.00030958,10]
[387503162,1758745860883,-302.92079481,0.0003099,2]
[387503163,1758745860951,-224.1,0.00031017,30]
[387503164,1758745860961,-30000.0,0.0003112,2]
[387503165,1758745860971,-850.0,0.00031233,5]
[387503166,1758745860981,-500.0,0.00031243,5]
[387503167,1758745860991,-5000.0,0.00031352,4]
[387503168,1758745861001,-1080.799999,0.000314,5]
[387503169,1758745861010,-168.58402945,0.00031451,2]
[387503170,1758745861020,-252.43,0.00031467,30]
[387503171,1758745861029,-215.8,0.00031643,19]
[387503172,1758745861039,-2542.27029692,0.0003169,16]
[387503173,1758745861048,-200.0,0.0003177,30]
[387503174,1758745861058,-1063.36071363,0.00031781,5]
[387503175,1758745861068,-1374.36,0.0003179,2]
[387503176,1758745861077,-978.0,0.00031799,2]
[387503177,1758745861087,-2159.0,0.00031799,2]
[387503178,1758745861097,-632.0,0.00031799,2]
[387503179,1758745861107,-379.129,0.00031799,2]
[387503180,1758745861117,-22523.09185034,0.000319,2]
[387503181,1758745861126,-160.0,0.00032,120]
[387503182,1758745861136,-160.0,0.00032,120]
[387503183,1758745861145,-6021.50243021,0.00032,120]
[387503184,1758745861155,-169.68552687,0.00032,120]
[387503185,1758745861165,-1077.53630576,0.00032,120]
[387503186,1758745861174,-240.0,0.00032,120]
[387503187,1758745861184,-190.83695568,0.00032,120]
[387503188,1758745861193,-8793.19357628,0.00032,60]
[387503189,1758745861202,-160.0,0.000323,120]
[387503190,1758745861212,-160.0,0.000323,120]
[387503191,1758745861222,-6021.50243021,0.000323,120]
[387503192,1758745861231,-169.68552687,0.000323,120]
[387503193,1758745861241,-233.62170814,0.000323,120]
[387503194,1758745861250,-1077.53630576,0.000323,120]
[387503195,1758745861260,-240.0,0.000323,120]
[387503196,1758745861270,-190.83695568,0.000323,120]
[387503197,1758745861279,-224.1,0.00032323,30]
[387503198,1758745861288,-215.8,0.00032328,20]
[387503199,1758745861298,-6021.50243021,0.000326,120]
[387503200,1758745861307,-169.68552687,0.000326,120]
[387503201,1758745861317,-1077.53630576,0.000326,120]
[387503202,1758745861326,-190.83695568,0.000326,120]
[387503203,1758745861335,-1000.0,0.000327,14]
[387503204,1758745861345,-2542.27029692,0.00032762,19]
[387503205,1758745861354,-771.54,0.00032876,120]
[387503206,1758745861364,-396.73376529,0.00032876,2]
[387503207,1758745861374,-630.0849758,0.00032876,2]
[387503208,1758745861384,-500.0,0.00032876,2]
[387503209,1758745861393,-398.58622476,0.00032876,2]
[387503210,1758745861408,-500.0,0.00032876,2]
[387503211,1758745861428,-500.0,0.00032876,2]
[387503212,1758745861444,-500.0,0.00032876,2]
[387503213,1758745861463,-500.0,0.00032876,2]
[387503214,1758745861484,-500.0,0.00032876,2]
[387503215,1758745861501,-500.0,0.00032876,2]
[387503216,1758745861517,-500.0,0.00032876,2]
[387503217,1758745861533,-500.0,0.00032876,2]
[387503218,1758745861546,-500.0,0.00032876,2]
[387503219,1758745861563,-500.0,0.00032876,2]
[387503220,1758745861583,-500.0,0.00032876,2]
[387503221,1758745861601,-500.0,0.00032876,2]
[387503222,1758745861614,-500.0,0.00032876,2]
[387503223,1758745861635,-500.0,0.00032876,2]
[387503224,1758745861649,-500.0,0.00032876,2]
[387503225,1758745861664,-500.0,0.00032876,2]
[387503226,1758745861677,-500.0,0.00032876,2]
[387503227,1758745861692,-500.0,0.00032876,2]
[387503228,1758745861707,-500.0,0.00032876,2]
[387503229,1758745861722,-500.0,0.00032876,2]
[387503230,1758745861737,-500.0,0.00032876,2]
[387503231,1758745861752,-500.0,0.00032876,2]
[387503232,1758745861766,-500.0,0.00032876,2]
[387503233,1758745861782,-500.0,0.00032876,2]
[387503234,1758745861793,-500.0,0.00032876,2]
[387503235,1758745861802,-500.0,0.00032876,2]
[387503236,1758745861811,-500.0,0.00032876,2]
[387503237,1758745861821,-621.77696699,0.00032876,2]
[387503238,1758745861830,-500.0,0.00032876,2]
[387503239,1758745861841,-500.0,0.00032876,2]
[387503240,1758745861850,-500.0,0.00032876,2]
[387503241,1758745861860,-500.0,0.00032876,2]
[387503242,1758745861869,-500.0,0.00032876,2]
[387503243,1758745861880,-500.0,0.00032876,2]
[387503244,1758745861890,-500.0,0.00032876,2]
[387503245,1758745861899,-500.0,0.00032876,2]
[387503246,1758745861909,-500.0,0.00032876,2]
[387503247,1758745861918,-500.0,0.00032876,2]
[387503248,1758745861929,-1500.0,0.00032877,2]
[387503249,1758745861939,-500.0,0.00032877,7]
[387503250,1758745861947,-500.0,0.00032877,7]
[387503251,1758745861957,-500.0,0.00032877,7]
[387503252,1758745861966,-430.44693877,0.00032877,7]
[387503253,1758745861977,-500.0,0.00032877,7]
[387503254,1758745861986,-500.0,0.00032877,7]
[387503255,1758745861995,-500.0,0.00032877,7]
[387503256,1758745862159,-500.0,0.00032877,7]
[387503257,1758745862174,-374.02244892,0.00032877,7]
[387503258,1758745862185,-500.0,0.00032877,7]
[387503259,1758745862195,-500.0,0.00032877,7]
[387503260,1758745862204,-500.0,0.00032877,7]
[387503261,1758745862214,-500.0,0.00032877,7]
[387503262,1758745862224,-500.0,0.00032877,7]
[387503263,1758745862233,-500.0,0.00032877,7]
[387503264,1758745862243,-500.0,0.00032877,7]
[387503265,1758745862252,-500.0,0.00032877,7]
[387503266,1758745862261,-500.0,0.00032877,7]
[387503267,1758745862271,-500.0,0.00032887,5]
[387503268,1758745862280,-233.62170814,0.000329,7]
[387503269,1758745862290,-6021.50243021,0.00033,120]
[387503270,1758745862300,-169.68552687,0.00033,120]
[387503271,1758745862309,-1077.53630576,0.00033,120]
[387503272,1758745862319,-532.2324375,0.00033,120]
[387503273,1758745862328,-417.15472785,0.00033,120]
[387503274,1758745862338,-417.15472785,0.00033,7]
[387503275,1758745862347,-160.0,0.00033,120]
[387503276,1758745862357,-11329.95255845,0.00033,2]
[387503277,1758745862366,-215.8,0.00033013,21]
[387503278,1758745862376,-212.49037176,0.000332,117]
[387503279,1758745862385,-6021.50243021,0.000333,120]
[387503280,1758745862395,-169.68552687,0.000333,120]
[387503281,1758745862404,-1077.53630576,0.000333,120]
[387503282,1758745862413,-287.5435,0.00033393,2]
[387503283,1758745862423,-500.0,0.00033426,7]
[387503284,1758745862432,-6021.50243021,0.000336,120]
[387503285,1758745862442,-150000.0,0.000336,4]
[387503286,1758745862451,-151.0,0.000336,7]
[387503287,1758745862460,-151.0,0.000336,7]
[387503288,1758745862472,-151.0,0.000336,7]
[387503289,1758745862483,-224.1,0.00033629,30]
[387503290,1758745862492,-425.684932,0.00033653,7]
[387503291,1758745862501,-425.684932,0.00033653,7]
[387503292,1758745862511,-425.684932,0.00033653,7]
[387503293,1758745862520,-425.684932,0.00033653,7]
[387503294,1758745862530,-151.0,0.00033653,7]
[387503295,1758745862539,-151.0,0.00033653,7]
[387503296,1758745862550,-151.0,0.00033653,7]
[387503297,1758745862559,-151.0,0.00033653,7]
[387503298,1758745862569,-151.0,0.00033653,7]
[387503299,1758745862579,-151.0,0.00033653,7]
[387503300,1758745862589,-347.00435,0.00033653,7]
[387503301,1758745862599,-151.0,0.00033653,7]
[387503302,1758745862608,-151.0,0.00033653,7]
[387503303,1758745862618,-347.00435,0.00033653,7]
[387503304,1758745862628,-347.00435,0.00033653,7]
[387503305,1758745862642,-347.00435,0.00033653,7]
[387503306,1758745862651,-151.0,0.00033653,7]
[387503307,1758745862661,-151.0,0.00033653,7]
[387503308,1758745862671,-151.0,0.00033653,7]
[387503309,1758745862682,-151.0,0.00033653,7]
[387503310,1758745862692,-151.0,0.00033653,7]
[387503311,1758745862701,-151.0,0.00033653,7]
[387503312,1758745862712,-151.0,0.00033653,7]
[387503313,1758745862724,-51495.98522189,0.00033653,4]
[387503314,1758745862815,-440.22699263,0.00019178,2]
[387503315,1758745862827,-39.77300737,0.00019178,2]
[387503316,1758745862838,-480.0,0.00019178,2]
[387503317,1758745862848,-480.0,0.00019178,2]
[387503318,1758745862858,-480.0,0.00019452,2]
[387503319,1758745862867,-480.0,0.00019452,2]
[387503320,1758745862877,-480.0,0.00019452,2]
[387503321,1758745862888,-480.0,0.00019726,2]
[387503322,1758745862898,-594.69,0.00019726,2]
[387503323,1758745862908,-480.0,0.0002,2]
[387503324,1758745862918,-480.0,0.00020273,2]
[387503325,1758745862929,-480.0,0.00020547,2]
[387503326,1758745862938,-480.0,0.00020821,2]
[387503327,1758745862948,-109.89699263,0.00021095,2]
[387503328,1758745862959,-370.10300737,0.00021095,2]
[387503329,1758745862968,-151.0,0.000249,7]
[387503330,1758745862978,-151.0,0.00029383,7]
[387503331,1758745862988,-500.0,0.00032877,7]
[387503332,1758745862998,-151.0,0.000336,7]
[387503333,1758745863007,-5078.83112777,0.00033653,4]
[387503334,1758745863019,-1723.36778252,0.00033653,4]
[387503335,1758745863036,-452.35,0.00019452,2]
[387503336,1758745863046,-43814.77199451,0.00033653,4]
[387503337,1758745863190,-480.0,0.00019178,2]
[387503338,1758745863200,-480.0,0.00019178,2]
[387503339,1758745863209,-480.0,0.00021369,2]
[387503340,1758745863219,-480.0,0.00021643,2]
[387503341,1758745863228,-480.0,0.00021917,2]
[387503342,1758745863237,-480.0,0.00022191,2]
[387503343,1758745863247,-480.0,0.00022465,2]
[387503344,1758745863256,-480.0,0.00022739,2]
[387503345,1758745863265,-533.4,0.00023013,2]
[387503346,1758745863275,-151.0,0.000249,7]
[387503347,1758745863285,-151.0,0.00029383,7]
[387503348,1758745863295,-2406.35,0.00032877,10]
[387503349,1758745863304,-182.785696,0.000336,7]
[387503350,1758745863314,-2117.42553423,0.00033653,4]
[387503351,1758745863325,-2393.13012637,0.00033653,4]
[387503352,1758745863335,-251.2803381,0.0003366,2]
[387503353,1758745863429,-480.0,0.00019178,2]
[387503354,1758745863439,-1319.4096619,0.0003366,2]
[387503355,1758745863449,-215.8,0.00033698,22]
[387503356,1758745863459,-151.0,0.00033834,7]
[387503357,1758745863470,-151.0,0.00033834,7]
[387503358,1758745863480,-336.58,0.00033888,30]
[387503359,1758745863491,-155.0,0.000339,120]
[387503360,1758745863501,-6021.50243021,0.00034,120]
[387503361,1758745863511,-532.2324375,0.00034,120]
[387503362,1758745863522,-417.15472785,0.00034,120]
[387503363,1758745863532,-160.0,0.00034,120]
[387503364,1758745863542,-532.2324375,0.00034,7]
[387503365,1758745863551,-162.380719,0.00034131,42]
[387503366,1758745863561,-156.587,0.00034215,48]
[387503367,1758745863570,-6021.50243021,0.000343,120]
[387503368,1758745863579,-151.89945,0.000343,7]
[387503369,1758745863588,-151.0,0.000343,7]
[387503370,1758745863598,-151.0,0.000343,7]
[387503371,1758745863607,-151.0,0.000343,7]
[387503372,1758745863616,-215.8,0.00034383,23]
[387503373,1758745863625,-296.7110155,0.00034401,30]
[387503374,1758745863639,-162.2253934,0.00034401,30]
[387503375,1758745863649,-586.1331603,0.00034401,30]
[387503376,1758745863659,-162.2253934,0.00034401,30]
[387503377,1758745863668,-586.1331603,0.00034401,30]
[387503378,1758745863678,-296.7110155,0.00034401,30]
[387503379,1758745863688,-151.0,0.00034496,7]
[387503380,1758745863698,-151.0,0.00034496,7]
[387503381,1758745863708,-151.0,0.00034496,7]
[387503382,1758745863718,-151.0,0.00034496,7]
[387503383,1758745863728,-151.0,0.00034496,7]
[387503384,1758745863738,-151.0,0.00034496,7]
[387503385,1758745863747,-151.0,0.00034496,7]
[387503386,1758745863756,-38.97123484,0.00034496,7]
[387503387,1758745863770,-112.02876516,0.00034496,7]
[387503388,1758745863780,-229.617928,0.00034496,7]
[387503389,1758745863790,-151.0,0.00034496,7]
[387503390,1758745863799,-151.0,0.00034496,7]
[387503391,1758745863808,-0.75358866,0.00034496,7]
[387503392,1758745863820,-150.24641134,0.00034496,7]
[387503393,1758745863829,-151.0,0.00034496,7]
[387503394,1758745863839,-151.0,0.00034496,7]
[387503395,1758745863848,-151.0,0.00034496,7]
[387503396,1758745863857,-155.381339,0.00034496,7]
[387503397,1758745863867,-151.0,0.00034496,7]
[387503398,1758745863877,-1060.12468366,0.00034496,2]
[387503399,1758745863894,-480.94680509,0.00019178,2]
[387503400,1758745863903,-13289.16906664,0.00034496,2]
[387503401,1758745863913,-151.0,0.00034521,2]
[387503402,1758745863922,-151.0,0.00034521,2]
[387503403,1758745863931,-151.0,0.00034521,2]
[387503404,1758745863940,-500.0,0.00034521,2]
[387503405,1758745863949,-151.0,0.00034521,2]
[387503406,1758745863959,-205.63281683,0.00034521,2]